[Event "RUS-chTW Premier 2019"]
[Site "Sochi"]
[Date "2019.05.04"]
[Round "4.10"]
[White "Trapeznikova, Darya"]
[Black "Markelova, Lubov"]
[Result "1/2-1/2"]
[ECO "A06"]
[WhiteElo "2090"]
[BlackElo "2199"]
[Annotator "NA"]
[PlyCount "99"]
[EventDate "2019.04.30"]
[EventType "team-tourn"]
[EventCountry "RUS"]
[SourceTitle "playchess.com"]
[Source "ChessBase"]
[SourceQuality "1"]
[TimeControl "40/5400+30:1800+30"]

1. Nf3 {[%emt 0:00:00]} d5 {[%emt 0:00:00]} 2. e3 {[%emt 0:00:00]} Nf6 {[%emt 0:00:00]} 3. c4 {[%emt 0:00:00]} c6 {[%emt 0:00:09]} 4. Nc3 {[%emt 0:00:13]} e6 {[%emt 0:01:06]} 5. b3 {[%emt 0:00:39]} Nbd7 {[%emt 0:01:06]} 6. Bb2 {[%emt 0:00:20]} Bd6 {[%emt 0:00:57]} 7. d4 {[%emt 0:00:07]} O-O {[%emt 0:00:51]} 8. Bd3 {[%emt 0:00:06]} e5 {[%emt 0:10:37]} 9. cxd5 {[%emt 0:00:30]} cxd5 {[%emt 0:00:31]} 10. dxe5 {[%emt 0:00:06]} Nxe5 {[%emt 0:00:12]} 11. h3 {[%emt 0:00:37]} Nxf3+ {[%emt 0:09:54]} 12. Qxf3 {[%emt 0:00:20]} Be5 {[%emt 0:04:03]} 13. O-O {[%emt 0:01:08]} Be6 {[%emt 0:01:33]} 14. Rac1 {[%emt 0:02:22]} Rc8 {[%emt 0:02:14]} 15. Rc2 {[%emt 0:02:34]} a6 {[%emt 0:05:22]} 16. Rfc1 {[%emt 0:08:15]} b5 {[%emt 0:11:19]} 17. Qd1 {[%emt 0:07:49]} Qd7 {[%emt 0:18:17]} 18. Ne2 {[%emt 0:05:19]} Bxb2 {[%emt 0:00:51]} 19. Rxb2 {[%emt 0:00:06]} Bf5 {[%emt 0:02:25]} 20. Rbc2 {[%emt 0:04:02]} h6 {[%emt 0:05:27]} 21. Nf4 {[%emt 0:04:35]} Bxd3 {[%emt 0:01:48]} 22. Qxd3 {[%emt 0:00:11]} Rxc2 {[%emt 0:00:56]} 23. Rxc2 {[%emt 0:01:35]} Rd8 {[%emt 0:00:32]} 24. Qd4 {[%emt 0:21:29]} Qf5 {[%emt 0:04:21]} 25. Rc1 {[%emt 0:00:54]} Ne4 {[%emt 0:03:52]} 26. Qb6 {[%emt 0:01:12]} Qf6 {[%emt 0:05:05]} 27. Qxf6 {[%emt 0:17:07]} Nxf6 {[%emt 0:00:04]} 28. Ne2 {[%emt 0:02:28]} Ne4 {[%emt 0:03:47]} 29. Rc6 {[%emt 0:02:13]} Ra8 {[%emt 0:02:48]} 30. Nf4 {[%emt 0:00:48]} Nf6 {[%emt 0:01:53]} 31. Rd6 {[%emt 0:00:34]} Ne4 {[%emt 0:01:29]} 32. Rc6 {[%emt 0:08:33]} Nf6 {[%emt 0:00:17]} 33. a4 {[%emt 0:00:31]} bxa4 {[%emt 0:01:52]} 34. bxa4 {[%emt 0:00:04]} a5 {[%emt 0:00:31]} 35. Rd6 {[%emt 0:01:35]} Ne4 {[%emt 0:00:25]} 36. Rxd5 {[%emt 0:04:57]} Nc3 {[%emt 0:00:05]} 37. Rd4 {[%emt 0:00:39]} g5 {[%emt 0:00:35]} 38. Rc4 {[%emt 0:00:05]} Nxa4 {[%emt 0:00:36]} 39. Rxa4 {[%emt 0:00:10]} gxf4 {[%emt 0:00:03]} 40. exf4 {[%emt 0:00:00]} Kg7 {[%emt 0:00:00]} 41. g4 {[%emt 0:02:45]} Kg6 {[%emt 0:01:08]} 42. Kg2 {[%emt 0:00:25]} Ra6 {[%emt 0:03:46]} 43. Kg3 {[%emt 0:02:08]} Ra8 {[%emt 0:00:45]} 44. h4 {[%emt 0:01:53]} h5 {[%emt 0:02:47]} 45. gxh5+ {[%emt 0:08:29]} Kxh5 {[%emt 0:00:20]} 46. f5 {[%emt 0:00:09]} f6 {[%emt 0:02:01]} 47. Kf3 {[%emt 0:01:00]} Ra7 {[%emt 0:00:24]} 48. Kg3 {[%emt 0:01:38]} Rg7+ {[%emt 0:00:38]} 49. Kf3 {[%emt 0:00:04]} Ra7 {[%emt 0:00:18]} 50. Kg3 {[%emt 0:00:06]} 1/2-1/2

[Event "RUS-chTW Premier 2019"]
[Site "Sochi"]
[Date "2019.05.04"]
[Round "4.11"]
[White "Shafigullina, Zarina"]
[Black "Chan, Naruna"]
[Result "0-1"]
[ECO "E01"]
[WhiteElo "2299"]
[BlackElo "1985"]
[Annotator "NA"]
[PlyCount "120"]
[EventDate "2019.04.30"]
[EventType "team-tourn"]
[EventCountry "RUS"]
[SourceTitle "playchess.com"]
[Source "ChessBase"]
[SourceQuality "1"]
[TimeControl "40/5400+30:1800+30"]

1. d4 {[%emt 0:00:00]} Nf6 {[%emt 0:00:00]} 2. c4 {[%emt 0:00:00]} e6 {[%emt 0:00:00]} 3. g3 {[%emt 0:00:00]} d5 {[%emt 0:00:37]} 4. Bg2 {[%emt 0:00:00]} b6 {[%emt 0:02:43]} 5. Nc3 {[%emt 0:09:23]} Bb7 {[%emt 0:00:47]} 6. Bg5 {[%emt 0:00:31]} Be7 {[%emt 0:01:52]} 7. cxd5 {[%emt 0:06:40]} exd5 {[%emt 0:02:11]} 8. Qb3 {[%emt 0:00:22]} c6 {[%emt 0:00:43]} 9. Nf3 {[%emt 0:02:30]} O-O {[%emt 0:01:07]} 10. Ne5 {[%emt 0:02:42]} Nbd7 {[%emt 0:01:31]} 11. Nxd7 {[%emt 0:03:53]} Qxd7 {[%emt 0:04:45]} 12. O-O {[%emt 0:02:15]} Rfe8 {[%emt 0:03:07]} 13. Rad1 {[%emt 0:00:31]} h6 {[%emt 0:12:13]} 14. Bf4 {[%emt 0:00:46]} Bd6 {[%emt 0:00:15]} 15. Bxd6 {[%emt 0:05:32]} Qxd6 {[%emt 0:00:07]} 16. Rfe1 {[%emt 0:00:09]} Re7 {[%emt 0:04:33]} 17. e4 {[%emt 0:04:56]} Nxe4 {[%emt 0:01:55]} 18. Nxe4 {[%emt 0:02:12]} dxe4 {[%emt 0:00:06]} 19. Rxe4 {[%emt 0:00:08]} Rxe4 {[%emt 0:04:21]} 20. Bxe4 {[%emt 0:00:05]} Rd8 {[%emt 0:05:11]} 21. Qa4 {[%emt 0:02:37]} a5 {[%emt 0:03:05]} 22. Qb3 {[%emt 0:02:19]} Qb4 {[%emt 0:03:00]} 23. Qxb4 {[%emt 0:13:59]} axb4 {[%emt 0:00:07]} 24. a3 {[%emt 0:02:35]} bxa3 {[%emt 0:02:40]} 25. bxa3 {[%emt 0:00:01]} Kf8 {[%emt 0:03:42]} 26. g4 {[%emt 0:05:57]} Ke7 {[%emt 0:01:47]} 27. f3 {[%emt 0:00:07]} Kd6 {[%emt 0:00:29]} 28. Rc1 {[%emt 0:08:16]} Ra8 {[%emt 0:03:40]} 29. Rc3 {[%emt 0:00:18]} Ra4 {[%emt 0:00:24]} 30. Rd3 {[%emt 0:00:15]} Ba6 {[%emt 0:08:16]} 31. Rb3 {[%emt 0:00:09]} b5 {[%emt 0:00:19]} 32. Rc3 {[%emt 0:01:26]} Bb7 {[%emt 0:02:36]} 33. Rd3 {[%emt 0:00:05]} Bc8 {[%emt 0:02:46]} 34. Kf2 {[%emt 0:01:08]} Rc4 {[%emt 0:03:37]} 35. d5 {[%emt 0:18:29]} c5 {[%emt 0:00:22]} 36. Rb3 {[%emt 0:00:15]} b4 {[%emt 0:03:15]} 37. Ke3 {[%emt 0:01:04]} Bd7 {[%emt 0:03:41]} 38. Bd3 {[%emt 0:06:01]} Rd4 {[%emt 0:00:31]} 39. axb4 {[%emt 0:00:06]} Rxb4 {[%emt 0:00:04]} 40. Rxb4 {[%emt 0:00:00]} cxb4 {[%emt 0:00:00]} 41. Kd4 {[%emt 0:00:22]} b3 {[%emt 0:03:19]} 42. Be4 {[%emt 0:08:07]} Bc8 {[%emt 0:01:55]} 43. Kc4 {[%emt 0:00:25]} Bb7 {[%emt 0:00:21]} 44. f4 {[%emt 0:00:25]} g5 {[%emt 0:02:01]} 45. fxg5 {[%emt 0:00:34]} hxg5 {[%emt 0:00:06]} 46. Kd4 {[%emt 0:00:05]} f6 {[%emt 0:00:27]} 47. h3 {[%emt 0:13:45]} b2 {[%emt 0:01:26]} 48. Kc3 {[%emt 0:01:22]} Bxd5 {[%emt 0:00:17]} 49. Bf5 {[%emt 0:00:37]} Ke5 {[%emt 0:00:43]} 50. Kxb2 {[%emt 0:00:06]} Bg2 {[%emt 0:00:14]} 51. Kc3 {[%emt 0:00:06]} Bxh3 {[%emt 0:00:17]} 52. Kd2 {[%emt 0:00:25]} Kf4 {[%emt 0:00:12]} 53. Ke1 {[%emt 0:00:05]} Bxg4 {[%emt 0:00:09]} 54. Bd3 {[%emt 0:00:09]} Kg3 {[%emt 0:01:13]} 55. Kf1 {[%emt 0:00:06]} f5 {[%emt 0:00:25]} 56. Kg1 {[%emt 0:00:11]} f4 {[%emt 0:00:15]} 57. Bf1 {[%emt 0:00:16]} Bh3 {[%emt 0:00:37]} 58. Bg2 {[%emt 0:00:06]} f3 {[%emt 0:00:15]} 59. Bxf3 {[%emt 0:00:09]} Kxf3 {[%emt 0:00:06]} 60. Kh2 {[%emt 0:00:11]} Be6 {[%emt 0:00:27]} 0-1

[Event "RUS-chTW Premier 2019"]
[Site "Sochi"]
[Date "2019.05.04"]
[Round "4.12"]
[White "Azimova, Karina"]
[Black "Bulatova, Kamaliya"]
[Result "1-0"]
[ECO "C01"]
[WhiteElo "2072"]
[BlackElo "2103"]
[Annotator "NA"]
[PlyCount "63"]
[EventDate "2019.04.30"]
[EventType "team-tourn"]
[EventCountry "RUS"]
[SourceTitle "playchess.com"]
[Source "ChessBase"]
[SourceQuality "1"]
[TimeControl "40/5400+30:1800+30"]

1. e4 {[%emt 0:00:00]} e6 {[%emt 0:00:00]} 2. d4 {[%emt 0:00:00]} d5 {[%emt 0:00:00]} 3. exd5 {[%emt 0:00:00]} exd5 {[%emt 0:00:00]} 4. Nf3 {[%emt 0:00:02]} Bd6 {[%emt 0:00:28]} 5. Bd3 {[%emt 0:04:37]} Bg4 {[%emt 0:04:20]} 6. O-O {[%emt 0:01:31]} Ne7 {[%emt 0:02:44]} 7. Re1 {[%emt 0:03:04]} Qd7 {[%emt 0:02:36]} 8. Nc3 {[%emt 0:09:52]} Nbc6 {[%emt 0:16:54]} 9. Nb5 {[%emt 0:03:47]} O-O-O {[%emt 0:04:59]} 10. Nxd6+ {[%emt 0:02:53]} Qxd6 {[%emt 0:01:01]} 11. c3 {[%emt 0:00:24]} h6 {[%emt 0:00:50]} 12. b4 {[%emt 0:00:59]} Ng6 {[%emt 0:04:25]} 13. h3 {[%emt 0:03:58]} Bd7 {[%emt 0:07:20]} 14. b5 {[%emt 0:07:15]} Na5 {[%emt 0:05:17]} 15. Qa4 {[%emt 0:02:57]} b6 {[%emt 0:04:12]} 16. Ba3 {[%emt 0:08:43]} Qf4 {[%emt 0:09:15]} 17. Bxg6 {[%emt 0:07:48]} fxg6 {[%emt 0:04:37]} 18. Ne5 {[%emt 0:00:04]} Rhf8 {[%emt 0:06:37]} 19. Re2 {[%emt 0:07:26]} Bxh3 {[%emt 0:07:43]} 20. Bxf8 {[%emt 0:05:47]} Rxf8 {[%emt 0:05:57]} 21. gxh3 {[%emt 0:04:06]} Qg5+ {[%emt 0:00:48]} 22. Kf1 {[%emt 0:03:25]} Qh4 {[%emt 0:02:05]} 23. Ke1 {[%emt 0:02:03]} Re8 {[%emt 0:02:42]} 24. Qc2 {[%emt 0:02:44]} Qxh3 {[%emt 0:00:43]} 25. Kd2 {[%emt 0:00:54]} Qh5 {[%emt 0:03:44]} 26. Qd3 {[%emt 0:01:13]} Qg5+ {[%emt 0:00:30]} 27. Kc2 {[%emt 0:00:16]} Kb7 {[%emt 0:01:21]} 28. Rae1 {[%emt 0:00:28]} Rf8 {[%emt 0:00:52]} 29. Qxg6 {[%emt 0:00:45]} Qe7 {[%emt 0:00:52]} 30. Nc6 {[%emt 0:01:00]} Qa3 {[%emt 0:00:39]} 31. Nxa5+ {[%emt 0:00:12]} bxa5 {[%emt 0:00:10]} 32. Qa6+ {[%emt 0:00:05]} 1-0

[Event "RUS-chTW Premier 2019"]
[Site "Sochi"]
[Date "2019.05.04"]
[Round "4.13"]
[White "Goltseva, Ekaterina"]
[Black "Badelka, Olga"]
[Result "0-1"]
[ECO "E55"]
[WhiteElo "2284"]
[BlackElo "2383"]
[Annotator "NA"]
[PlyCount "128"]
[EventDate "2019.04.30"]
[EventType "team-tourn"]
[EventCountry "RUS"]
[SourceTitle "playchess.com"]
[Source "ChessBase"]
[SourceQuality "1"]
[TimeControl "40/5400+30:1800+30"]

1. d4 {[%emt 0:00:00]} Nf6 {[%emt 0:00:00]} 2. c4 {[%emt 0:00:00]} e6 {[%emt 0:00:00]} 3. Nc3 {[%emt 0:00:00]} Bb4 {[%emt 0:00:00]} 4. e3 {[%emt 0:00:10]} O-O {[%emt 0:00:00]} 5. Bd3 {[%emt 0:00:35]} d5 {[%emt 0:00:09]} 6. Nf3 {[%emt 0:00:11]} c5 {[%emt 0:00:13]} 7. O-O {[%emt 0:00:42]} dxc4 {[%emt 0:00:14]} 8. Bxc4 {[%emt 0:00:34]} Nbd7 {[%emt 0:00:06]} 9. Ne2 {[%emt 0:15:15]} cxd4 {[%emt 0:05:34]} 10. exd4 {[%emt 0:03:51]} Nb6 {[%emt 0:10:44]} 11. Bd3 {[%emt 0:00:21]} Nbd5 {[%emt 0:00:50]} 12. Ne5 {[%emt 0:07:20]} Bd6 {[%emt 0:01:30]} 13. Ng3 {[%emt 0:03:15]} b6 {[%emt 0:07:07]} 14. a3 {[%emt 0:04:14]} Bb7 {[%emt 0:00:35]} 15. Qe2 {[%emt 0:01:31]} Rc8 {[%emt 0:10:03]} 16. Bg5 {[%emt 0:08:47]} Qc7 {[%emt 0:02:11]} 17. Rac1 {[%emt 0:05:41]} Qb8 {[%emt 0:00:29]} 18. Nh5 {[%emt 0:18:33]} Rxc1 {[%emt 0:01:35]} 19. Rxc1 {[%emt 0:02:41]} Qd8 {[%emt 0:03:42]} 20. Be4 {[%emt 0:17:03]} Be7 {[%emt 0:05:43]} 21. Bxf6 {[%emt 0:01:17]} Bxf6 {[%emt 0:00:05]} 22. Qg4 {[%emt 0:00:23]} Bg5 {[%emt 0:11:49]} 23. Bxd5 {[%emt 0:08:16]} Bxd5 {[%emt 0:00:03]} 24. f4 {[%emt 0:00:29]} Bh6 {[%emt 0:00:46]} 25. Rc3 {[%emt 0:00:46]} f6 {[%emt 0:02:25]} 26. Nd3 {[%emt 0:00:25]} Qd6 {[%emt 0:02:42]} 27. h3 {[%emt 0:00:37]} Be4 {[%emt 0:02:27]} 28. Nf2 {[%emt 0:00:28]} Bf5 {[%emt 0:00:42]} 29. Qd1 {[%emt 0:00:31]} Bxf4 {[%emt 0:01:16]} 30. Nxf4 {[%emt 0:00:23]} Qxf4 {[%emt 0:00:03]} 31. Qa4 {[%emt 0:00:34]} Qb8 {[%emt 0:03:37]} 32. Rc6 {[%emt 0:00:33]} Rd8 {[%emt 0:03:59]} 33. Qb4 {[%emt 0:00:28]} Qb7 {[%emt 0:01:34]} 34. Qc3 {[%emt 0:00:22]} Qd7 {[%emt 0:02:50]} 35. Rc7 {[%emt 0:00:22]} Qxd4 {[%emt 0:00:29]} 36. Qxd4 {[%emt 0:00:36]} Rxd4 {[%emt 0:00:02]} 37. Rxa7 {[%emt 0:00:24]} e5 {[%emt 0:00:41]} 38. Rc7 {[%emt 0:00:40]} e4 {[%emt 0:03:07]} 39. Rc3 {[%emt 0:00:13]} Bd7 {[%emt 0:00:23]} 40. g4 {[%emt 0:00:00]} g6 {[%emt 0:00:00]} 41. h4 {[%emt 0:13:42]} f5 {[%emt 0:02:54]} 42. gxf5 {[%emt 0:00:38]} gxf5 {[%emt 0:00:17]} 43. Nh3 {[%emt 0:00:33]} Rd2 {[%emt 0:06:05]} 44. h5 {[%emt 0:07:52]} Kg7 {[%emt 0:01:55]} 45. Rg3+ {[%emt 0:01:45]} Kh6 {[%emt 0:03:13]} 46. Nf4 {[%emt 0:01:10]} Rxb2 {[%emt 0:01:51]} 47. Rg8 {[%emt 0:03:51]} Bb5 {[%emt 0:02:11]} 48. Rg3 {[%emt 0:00:46]} Bc4 {[%emt 0:02:19]} 49. Rc3 {[%emt 0:01:22]} Bf7 {[%emt 0:01:21]} 50. Rg3 {[%emt 0:01:27]} b5 {[%emt 0:00:22]} 51. Kf1 {[%emt 0:00:24]} Rh2 {[%emt 0:00:27]} 52. Kg1 {[%emt 0:00:31]} Rh4 {[%emt 0:00:17]} 53. Ng2 {[%emt 0:00:25]} Rxh5 {[%emt 0:00:15]} 54. Kf2 {[%emt 0:00:22]} Rh1 {[%emt 0:00:49]} 55. Ke3 {[%emt 0:01:02]} Bg6 {[%emt 0:00:51]} 56. Nf4 {[%emt 0:01:03]} Kg7 {[%emt 0:00:52]} 57. Kd4 {[%emt 0:00:50]} Kf6 {[%emt 0:00:41]} 58. Nd5+ {[%emt 0:00:22]} Ke6 {[%emt 0:01:42]} 59. Nc7+ {[%emt 0:00:17]} Kd7 {[%emt 0:00:52]} 60. Rc3 {[%emt 0:01:16]} f4 {[%emt 0:01:10]} 61. Nd5 {[%emt 0:01:04]} f3 {[%emt 0:00:16]} 62. Ke5 {[%emt 0:00:22]} Rh5+ {[%emt 0:00:18]} 63. Kd4 {[%emt 0:00:21]} Rxd5+ {[%emt 0:00:30]} 64. Kxd5 {[%emt 0:00:10]} f2 {[%emt 0:00:04]} 0-1

[Event "RUS-chTW Premier 2019"]
[Site "Sochi"]
[Date "2019.05.04"]
[Round "4.14"]
[White "Dordzhieva, Dinara"]
[Black "Vifleemskaia, Svetlana"]
[Result "1-0"]
[ECO "A40"]
[WhiteElo "2280"]
[BlackElo "1969"]
[Annotator "NA"]
[PlyCount "68"]
[EventDate "2019.04.30"]
[EventType "team-tourn"]
[EventCountry "RUS"]
[SourceTitle "playchess.com"]
[Source "ChessBase"]
[SourceQuality "1"]
[TimeControl "40/5400+30:1800+30"]

1. d4 {[%emt 0:00:00]} Nf6 {[%emt 0:00:24]} 2. c4 {[%emt 0:00:00]} e6 {[%emt 0:00:31]} 3. g3 {[%emt 0:01:13]} Bb4+ {[%emt 0:04:56]} 4. Bd2 {[%emt 0:00:16]} Qe7 {[%emt 0:04:37]} 5. Bg2 {[%emt 0:00:19]} O-O {[%emt 0:01:41]} 6. Nf3 {[%emt 0:03:48]} a5 {[%emt 0:03:25]} 7. O-O {[%emt 0:04:02]} Bxd2 {[%emt 0:02:39]} 8. Nbxd2 {[%emt 0:01:53]} d6 {[%emt 0:00:15]} 9. Qc2 {[%emt 0:04:08]} e5 {[%emt 0:09:37]} 10. e3 {[%emt 0:00:35]} Nc6 {[%emt 0:02:50]} 11. a3 {[%emt 0:02:46]} a4 {[%emt 0:13:12]} 12. Rac1 {[%emt 0:02:16]} Bd7 {[%emt 0:07:40]} 13. Nb1 {[%emt 0:10:12]} Na5 {[%emt 0:09:02]} 14. Nfd2 {[%emt 0:01:26]} Nc6 {[%emt 0:14:06]} 15. dxe5 {[%emt 0:15:59]} Qxe5 {[%emt 0:02:26]} 16. Nc3 {[%emt 0:00:47]} Qh5 {[%emt 0:04:40]} 17. Nd5 {[%emt 0:05:09]} Ne8 {[%emt 0:06:31]} 18. f4 {[%emt 0:13:45]} Bh3 {[%emt 0:06:40]} 19. Bf3 {[%emt 0:00:56]} Bg4 {[%emt 0:01:31]} 20. Bh1 {[%emt 0:00:20]} Bf5 {[%emt 0:00:50]} 21. Qc3 {[%emt 0:00:38]} Be6 {[%emt 0:01:15]} 22. Rce1 {[%emt 0:03:57]} Bxd5 {[%emt 0:00:38]} 23. cxd5 {[%emt 0:01:06]} Ne7 {[%emt 0:00:19]} 24. Bf3 {[%emt 0:01:23]} Qh6 {[%emt 0:01:17]} 25. Qb4 {[%emt 0:00:49]} b6 {[%emt 0:00:43]} 26. e4 {[%emt 0:01:09]} Nc8 {[%emt 0:00:37]} 27. e5 {[%emt 0:01:32]} Ra5 {[%emt 0:00:28]} 28. Re2 {[%emt 0:04:03]} dxe5 {[%emt 0:00:35]} 29. fxe5 {[%emt 0:00:48]} Qg5 {[%emt 0:00:13]} 30. Bg2 {[%emt 0:02:03]} h5 {[%emt 0:00:49]} 31. Qd4 {[%emt 0:03:41]} Qe7 {[%emt 0:00:20]} 32. Ne4 {[%emt 0:00:52]} Qd7 {[%emt 0:00:31]} 33. Ng5 {[%emt 0:01:47]} Qg4 {[%emt 0:00:36]} 34. Qd2 {[%emt 0:02:24]} Rc5 1-0

[Event "RUS-chTW Premier 2019"]
[Site "Sochi"]
[Date "2019.05.04"]
[Round "4.15"]
[White "Shendrik, Zhanna"]
[Black "Maltsevskaya, Aleksandra"]
[Result "1/2-1/2"]
[ECO "A58"]
[WhiteElo "1954"]
[BlackElo "2299"]
[Annotator "NA"]
[PlyCount "81"]
[EventDate "2019.04.30"]
[EventType "team-tourn"]
[EventCountry "RUS"]
[SourceTitle "playchess.com"]
[Source "ChessBase"]
[SourceQuality "1"]
[TimeControl "40/5400+30:1800+30"]

1. d4 {[%emt 0:00:00]} Nf6 {[%emt 0:00:00]} 2. c4 {[%emt 0:00:00]} c5 {[%emt 0:00:00]} 3. d5 {[%emt 0:00:00]} b5 {[%emt 0:00:02]} 4. cxb5 {[%emt 0:00:15]} a6 {[%emt 0:00:06]} 5. bxa6 {[%emt 0:00:15]} g6 {[%emt 0:00:07]} 6. Nc3 {[%emt 0:00:30]} Bg7 {[%emt 0:00:27]} 7. Nf3 {[%emt 0:00:22]} O-O {[%emt 0:01:04]} 8. e4 {[%emt 0:00:41]} Qa5 {[%emt 0:04:27]} 9. Bd2 {[%emt 0:00:39]} Bxa6 {[%emt 0:00:07]} 10. Be2 {[%emt 0:00:39]} Bxe2 {[%emt 0:03:19]} 11. Qxe2 {[%emt 0:00:55]} Qa6 {[%emt 0:00:05]} 12. e5 {[%emt 0:09:01]} Ne8 {[%emt 0:09:57]} 13. O-O {[%emt 0:09:50]} Nc7 {[%emt 0:05:17]} 14. Qe4 {[%emt 0:03:56]} d6 {[%emt 0:02:49]} 15. Bf4 {[%emt 0:04:52]} Nd7 {[%emt 0:06:51]} 16. exd6 {[%emt 0:18:13]} Nf6 {[%emt 0:10:49]} 17. Qxe7 {[%emt 0:05:39]} Nb5 {[%emt 0:05:31]} 18. Nxb5 {[%emt 0:18:35]} Qxb5 {[%emt 0:00:07]} 19. Rfd1 {[%emt 0:06:38]} Rfe8 {[%emt 0:25:36]} 20. Qc7 {[%emt 0:01:01]} Ne4 {[%emt 0:01:28]} 21. Ne5 {[%emt 0:08:24]} Qxb2 {[%emt 0:06:26]} 22. Qxf7+ {[%emt 0:02:04]} Kh8 {[%emt 0:00:05]} 23. Nd3 {[%emt 0:00:22]} Qe2 {[%emt 0:03:13]} 24. Rab1 {[%emt 0:02:46]} Rf8 {[%emt 0:00:39]} 25. Qb7 {[%emt 0:02:29]} Rxa2 {[%emt 0:01:15]} 26. Qe7 {[%emt 0:03:10]} Nxf2 {[%emt 0:11:48]} 27. Qxe2 {[%emt 0:00:04]} Rxe2 {[%emt 0:00:03]} 28. Nxf2 {[%emt 0:01:36]} Rxf4 {[%emt 0:00:05]} 29. Rb8+ {[%emt 0:00:04]} Rf8 {[%emt 0:00:12]} 30. Rxf8+ {[%emt 0:00:27]} Bxf8 {[%emt 0:00:04]} 31. d7 {[%emt 0:00:20]} Be7 {[%emt 0:00:04]} 32. Nd3 {[%emt 0:00:38]} c4 {[%emt 0:01:38]} 33. Nf4 {[%emt 0:00:31]} Re5 {[%emt 0:00:52]} 34. Ne6 {[%emt 0:00:14]} c3 {[%emt 0:00:22]} 35. d8=Q+ {[%emt 0:01:13]} Bxd8 {[%emt 0:00:05]} 36. Nxd8 {[%emt 0:00:03]} c2 {[%emt 0:00:08]} 37. Rc1 {[%emt 0:01:09]} Rxd5 {[%emt 0:00:05]} 38. Nf7+ {[%emt 0:00:17]} Kg7 {[%emt 0:00:04]} 39. Rxc2 {[%emt 0:00:06]} Kxf7 {[%emt 0:00:05]} 40. g3 {[%emt 0:00:00]} Kg7 {[%emt 0:00:00]} 41. Kg2 {[%emt 0:00:18]} 1/2-1/2

[Event "RUS-chTW Premier 2019"]
[Site "Sochi"]
[Date "2019.05.04"]
[Round "4.16"]
[White "Diakonova, Ekaterina"]
[Black "Zavivaeva, Emilia"]
[Result "0-1"]
[ECO "C02"]
[WhiteElo "2211"]
[BlackElo "1789"]
[Annotator "NA"]
[PlyCount "78"]
[EventDate "2019.04.30"]
[EventType "team-tourn"]
[EventCountry "RUS"]
[SourceTitle "playchess.com"]
[Source "ChessBase"]
[SourceQuality "1"]
[TimeControl "40/5400+30:1800+30"]

1. e4 {[%emt 0:00:00]} e6 {[%emt 0:00:00]} 2. d4 {[%emt 0:00:00]} d5 {[%emt 0:00:00]} 3. e5 {[%emt 0:00:00]} c5 {[%emt 0:00:06]} 4. c3 {[%emt 0:00:00]} Bd7 {[%emt 0:02:50]} 5. Nf3 {[%emt 0:00:00]} Nc6 {[%emt 0:00:27]} 6. a3 {[%emt 0:00:23]} Nge7 {[%emt 0:01:10]} 7. b4 {[%emt 0:02:19]} cxd4 {[%emt 0:03:17]} 8. cxd4 {[%emt 0:00:05]} a6 {[%emt 0:02:32]} 9. Nc3 {[%emt 0:04:17]} Nf5 {[%emt 0:00:24]} 10. Be2 {[%emt 0:08:35]} Be7 {[%emt 0:03:19]} 11. O-O {[%emt 0:03:07]} O-O {[%emt 0:02:32]} 12. g4 {[%emt 0:06:28]} Nh4 {[%emt 0:02:06]} 13. Nxh4 {[%emt 0:00:17]} Bxh4 {[%emt 0:00:05]} 14. f4 {[%emt 0:00:04]} f6 {[%emt 0:05:39]} 15. exf6 {[%emt 0:10:04]} Bxf6 {[%emt 0:00:35]} 16. Be3 {[%emt 0:00:04]} b5 {[%emt 0:04:50]} 17. g5 {[%emt 0:12:35]} Be7 {[%emt 0:01:47]} 18. Bd3 {[%emt 0:00:21]} Be8 {[%emt 0:06:33]} 19. Qg4 {[%emt 0:22:54]} Qd7 {[%emt 0:02:59]} 20. Rf3 {[%emt 0:00:05]} Rc8 {[%emt 0:04:32]} 21. Ne2 {[%emt 0:06:28]} e5 {[%emt 0:06:36]} 22. Bxh7+ {[%emt 0:04:11]} Kxh7 {[%emt 0:00:25]} 23. g6+ {[%emt 0:00:02]} Kg8 {[%emt 0:01:57]} 24. f5 {[%emt 0:02:21]} Bxg6 {[%emt 0:04:10]} 25. Qxg6 {[%emt 0:00:05]} exd4 {[%emt 0:02:46]} 26. Rg3 {[%emt 0:04:58]} Bf6 {[%emt 0:02:14]} 27. Bg5 {[%emt 0:03:24]} Ne5 {[%emt 0:11:15]} 28. Qh5 {[%emt 0:00:05]} d3 {[%emt 0:02:37]} 29. Bxf6 {[%emt 0:01:31]} Rxf6 {[%emt 0:00:04]} 30. Nd4 {[%emt 0:00:01]} Qa7 {[%emt 0:01:57]} 31. Qh4 {[%emt 0:00:02]} Rc4 {[%emt 0:04:35]} 32. Qxf6 {[%emt 0:02:02]} Qxd4+ {[%emt 0:00:13]} 33. Kg2 {[%emt 0:00:34]} Rc2+ {[%emt 0:01:27]} 34. Kh3 {[%emt 0:00:00]} Rxh2+ {[%emt 0:01:15]} 35. Kxh2 {[%emt 0:00:00]} Ng4+ {[%emt 0:03:14]} 36. Rxg4 {[%emt 0:00:00]} Qxf6 {[%emt 0:00:03]} 37. Rf1 {[%emt 0:00:51]} d2 {[%emt 0:01:50]} 38. Kg2 {[%emt 0:03:16]} Qb2 {[%emt 0:01:44]} 39. Kh3 {[%emt 0:01:43]} Qb3+ {[%emt 0:02:03]} 0-1